bitfinex/quotes_SOLUSD_20240902
["timestamp","ask_amount","ask_price","bid_price","bid_amount"]
[1725263365497,0.8284627,128.0,127.94,41.2932]
[1725263365702,0.8284627,128.0,127.99,7.8131]
[1725263366219,7.807,128.09,128.04,7.81]
[1725263367002,72.73339621,128.1,128.03,19.5265]
[1725263367199,30.9123363,128.1,128.05,7.8092]
[1725263367720,38.7192363,128.1,128.04,7.81]
[1725263368830,41.82105991,128.09,128.04,7.81]
[1725263369702,0.12549,128.08,128.04,7.81]
[1725263369902,0.12549,128.08,128.05,7.8091]
[1725263370406,0.12549,128.09,128.05,7.8091]
[1725263371095,49.62795991,128.1,128.04,7.8099]
[1725263371731,41.82105991,128.08,128.03,27.3371]
[1725263372020,30.9123363,128.11,128.03,19.5265]
[1725263372195,41.82105991,128.1,128.03,19.5265]
[1725263372396,7.8064,128.1,128.04,7.8094]
[1725263372615,38.7183363,128.11,128.05,7.8089]
[1725263373713,7.8064,128.1,128.05,7.8089]
[1725263373917,41.82105991,128.12,128.07,7.8081]
[1725263374514,49.62635991,128.12,128.06,19.5218]
[1725263374720,41.82105991,128.1,128.06,19.5218]
[1725263374919,38.7181363,128.11,128.06,19.5218]
[1725263375131,38.7181363,128.11,128.06,27.3304]
[1725263375318,80.53919621,128.11,128.06,19.5218]
[1725263375834,0.12549,128.1,128.06,19.5218]
[1725263376238,7.8052,128.12,128.06,19.5218]
[1725263377336,7.8052,128.12,128.07,7.8079]
[1725263377816,81.36645891,128.13,128.08,7.8073]
[1725263378021,0.12549,128.12,128.08,7.8073]
[1725263378424,0.12549,128.12,128.07,7.8081]
[1725263378932,7.93079,128.12,128.07,7.8081]
[1725263379405,30.9123363,128.09,128.03,19.5263]
[1725263380921,0.12549,128.08,128.03,19.5263]
[1725263381138,7.8076,128.08,128.03,27.3364]
[1725263381337,7.8076,128.08,128.03,19.5263]
[1725263381542,38.7193363,128.09,128.04,7.81]
[1725263382529,30.9123363,128.09,128.05,7.8092]
[1725263382730,72.73339621,128.09,128.03,19.5263]
[1725263383045,7.8082,128.07,128.03,19.5263]
[1725263383256,72.73339621,128.09,128.03,27.3369]
[1725263383950,0.12549,128.08,128.03,27.3369]
[1725263384323,7.93329,128.08,128.03,27.3369]
[1725263384724,7.93329,128.08,128.02,21.753]
[1725263384725,7.8088,128.06,128.02,21.753]
[1725263385142,7.8113,128.02,127.99,6.16]
[1725263386218,7.8113,128.02,127.98,16.504]
[1725263386423,30.9123363,128.03,127.98,24.3177]
[1725263386932,38.7232363,128.03,127.98,24.3177]
[1725263387434,38.7232363,128.03,127.95,6.1503]
[1725263387435,30.9123363,127.99,127.95,21.2194]
[1725263388026,30.9123363,127.99,127.92,16.2876]
[1725263388229,0.12549,127.98,127.93,7.8165]
[1725263388946,30.9123363,127.99,127.94,7.8159]
[1725263389928,38.7254363,127.99,127.94,7.8159]
[1725263390138,30.9123363,127.99,127.95,7.8155]
[1725263390332,30.9123363,127.99,127.97,7.8138]
[1725263390540,30.9123363,128.01,127.95,7.8149]
[1725263390750,38.7247363,128.01,127.96,19.5361]
[1725263391745,30.9123363,128.01,127.96,19.5361]
[1725263392728,38.7230363,128.03,127.98,7.8136]
[1725263393247,30.9123363,128.03,127.98,7.8134]
[1725263393465,30.9123363,128.03,127.96,19.5361]
[1725263393828,30.9123363,128.03,127.98,7.8137]
[1725263394028,30.9123363,128.03,127.98,14.293]
[1725263394750,38.7234363,128.03,127.98,14.293]
[1725263395138,30.9123363,128.03,127.99,7.813]
[1725263395634,38.7233363,128.03,127.99,16.5757]
[1725263395837,0.12549,128.02,127.98,6.4793]
[1725263396058,7.8126,128.0,127.95,49.6508]
[1725263396542,7.8118,128.01,127.96,7.8148]
[1725263397462,7.93679,128.02,127.97,7.8143]
[1725263398052,7.93679,128.02,127.98,7.8135]
[1725263398360,7.93679,128.02,127.97,7.8142]
[1725263398865,41.82105991,128.01,127.95,41.8359]
[1725263399036,7.8126,128.0,127.96,7.8147]
[1725263399741,7.8126,128.0,127.95,49.6513]
[1725263399946,7.8119,128.01,127.96,52.8148]
[1725263400257,7.8125,128.0,127.96,7.8148]
[1725263400458,7.8125,128.0,127.95,49.6513]
[1725263401452,30.9123363,128.03,127.95,41.8359]
[1725263401453,7.812,128.01,127.95,41.8359]
[1725263401658,30.9123363,128.03,127.98,7.8132]
[1725263402059,30.9123363,128.03,127.97,19.5346]
[1725263402060,30.9123363,128.03,127.99,7.813]
[1725263402359,38.7218363,128.05,128.0,7.8123]
[1725263402539,7.81,128.04,128.0,7.8123]
[1725263402734,7.81,128.04,127.99,27.3447]
[1725263403254,7.8107,128.03,127.99,19.5319]
[1725263403464,38.7230363,128.03,127.99,19.5319]
[1725263403774,38.7230363,128.03,127.96,27.3513]
[1725263403775,7.812,128.01,127.96,27.3513]
[1725263403971,7.8114,128.02,127.97,7.8142]
[1725263404257,30.9123363,128.03,127.98,7.8136]
[1725263404258,38.7231363,128.03,127.98,7.8136]
[1725263404837,30.9123363,128.01,127.97,7.8141]
[1725263405454,30.9123363,128.01,127.96,19.5365]
[1725263405842,0.12549,128.02,127.96,19.5365]
[1725263407063,7.8119,128.01,127.97,7.8143]
[1725263407231,41.82105991,128.01,127.95,22.2971]
[1725263407438,7.8131,127.99,127.95,22.2971]
[1725263408138,30.9123363,127.98,127.93,19.5412]
[1725263408333,7.8148,127.97,127.93,19.5412]
[1725263408536,7.94029,127.97,127.93,19.5412]
[1725263409960,0.12549,127.97,127.93,27.3579]
[1725263412066,41.82105991,128.04,127.95,19.538]
[1725263412258,7.8113,128.02,127.97,7.8141]
[1725263412463,38.7230363,128.03,127.98,7.8132]
[1725263413259,38.7230363,128.03,127.97,19.535]
[1725263413766,7.8115,128.02,127.97,27.3492]
[1725263413958,7.8129,128.0,127.95,7.815]
[1725263415264,7.8132,127.99,127.95,7.8154]
[1725263415465,7.8125,128.0,127.95,7.8154]
[1725263416573,38.7244363,128.01,127.96,7.8145]
[1725263417173,30.9123363,128.01,127.97,7.8142]
[1725263417350,7.8112,128.02,127.97,7.8142]
[1725263417556,0.12549,128.01,127.97,7.8142]
[1725263418072,7.8112,128.02,127.97,7.8142]
[1725263419065,38.7230363,128.03,127.96,19.5364]
[1725263419283,38.7230363,128.03,127.98,7.8136]
[1725263419963,30.9123363,128.03,127.98,6.0739]
[1725263420173,30.9123363,128.03,128.0,7.8123]
[1725263420660,30.9123363,128.03,127.99,23.4496]
[1725263420858,30.9123363,128.03,127.99,15.6366]
[1725263421087,30.9123363,128.03,127.95,41.2486]
[1725263421379,0.12549,128.02,127.95,41.2486]
[1725263421691,0.12549,128.02,127.96,45.0]
[1725263421854,38.7234363,128.03,127.98,7.8136]
[1725263422055,7.8114,128.02,127.98,7.8136]
[1725263422255,7.8114,128.02,127.97,27.3491]
[1725263422559,0.12549,128.01,127.97,27.3491]
[1725263422968,7.8114,128.02,127.97,27.3491]
[1725263423871,7.8114,128.02,127.98,7.8135]
[1725263424076,30.9123363,128.03,127.97,19.5349]
[1725263424260,30.9123363,128.03,127.98,45.0]
[1725263424665,30.9123363,128.03,127.99,7.8129]
[1725263424954,30.9123363,128.03,128.0,7.8123]
[1725263428183,24.69563329,128.03,128.01,7.8117]
[1725263430465,7.8113,128.02,127.97,7.8141]
[1725263430661,24.69563329,128.01,127.96,19.5366]
[1725263432085,7.8108,128.03,127.97,45.0]
[1725263432584,24.69563329,128.04,128.01,7.8118]
[1725263432886,24.69563329,128.04,128.02,7.8112]
[1725263433088,24.69563329,128.04,128.01,7.8118]
[1725263435091,24.69563329,128.04,128.0,27.343]
[1725263435794,24.69563329,128.04,128.01,7.8118]
[1725263437502,24.69563329,128.04,128.0,19.5307]
[1725263437872,0.12549,128.03,127.97,19.5352]
[1725263438067,24.69563329,128.01,127.97,19.5352]
[1725263438803,24.69563329,128.04,127.99,7.813]
[1725263439397,32.50573329,128.04,127.99,7.813]
[1725263439708,24.69563329,128.04,128.0,7.8123]
[1725263440889,24.69563329,128.04,128.01,7.8117]
[1725263441090,24.69563329,128.04,127.99,19.5319]
[1725263441393,24.69563329,128.04,128.01,7.8117]
[1725263442904,24.69563329,128.04,128.0,7.8124]
[1725263444572,24.69563329,128.04,127.99,19.5319]
[1725263444777,24.69563329,128.04,128.01,7.8117]
[1725263445196,24.69563329,128.04,128.0,7.8123]
[1725263445911,24.69563329,128.02,127.99,19.5319]
[1725263446701,24.69563329,128.02,127.96,39.0722]
[1725263446702,24.69563329,128.0,127.96,19.5366]
[1725263446874,32.50813329,128.0,127.96,19.5366]
[1725263448305,32.50813329,128.0,127.96,27.3514]
[1725263450808,24.69563329,128.0,127.96,27.3514]
[1725263451283,32.50693329,128.02,127.98,7.8135]
[1725263451807,61.34535991,128.05,127.98,7.8135]
[1725263451808,7.8095,128.05,128.0,7.8123]
[1725263452687,24.69563329,128.04,128.01,7.8117]
[1725263455197,24.69563329,128.04,128.0,19.5305]
[1725263455401,7.8123,128.01,127.97,19.5356]
[1725263455587,32.50693329,128.02,127.97,27.3494]
[1725263456398,32.50693329,128.02,127.98,7.8134]
[1725263456399,24.69563329,128.02,127.98,7.8134]
[1725263456609,24.19563329,128.02,127.98,7.8134]
[1725263457681,32.00693329,128.02,127.98,7.8134]
[1725263458019,7.8127,128.0,127.96,23.9499]
[1725263458194,7.93739,128.01,127.96,23.9499]
[1725263458516,24.19563329,128.02,127.97,7.8142]
[1725263458517,32.00693329,128.02,127.97,7.8142]
[1725263460216,24.69563329,128.0,127.96,16.135]
[1725263460514,88.02333905,128.04,127.94,7.816]
[1725263460515,24.69563329,127.98,127.94,7.816]
[1725263460710,24.69563329,127.98,127.95,7.8153]
[1725263460914,24.69563329,128.0,127.95,7.8153]
[1725263461122,24.69563329,128.0,127.96,7.8145]
[1725263461491,32.50693329,128.02,127.97,7.8141]
[1725263461722,24.69563329,128.02,127.97,19.5347]
[1725263462317,24.69563329,128.02,127.98,16.5561]
[1725263462813,24.69563329,128.02,127.98,24.3693]
[1725263463706,24.69563329,128.02,127.98,16.5561]
[1725263464016,7.8119,128.01,127.95,16.125]
[1725263464191,32.50823329,128.0,127.95,16.125]
[1725263464387,24.69563329,128.0,127.96,7.8148]
[1725263464699,7.8119,128.01,127.96,7.8148]
[1725263464897,0.12549,128.0,127.96,7.8148]
[1725263465109,7.93799,128.0,127.96,7.8148]
[1725263466008,7.8131,127.99,127.95,23.9404]
[1725263466207,32.63372329,128.0,127.95,23.9404]
[1725263466396,32.63372329,128.0,127.96,7.8148]
[1725263466723,24.82112329,128.0,127.96,7.8148]
[1725263467400,24.82112329,128.0,127.97,19.5357]
[1725263467598,0.12549,128.0,127.97,19.5357]
[1725263467925,7.8119,128.01,127.97,19.5357]
[1725263468417,7.8119,128.01,127.95,16.125]
[1725263468418,24.82112329,128.0,127.95,16.125]
[1725263468627,24.69563329,127.98,127.92,21.9308]
[1725263468799,7.8143,127.97,127.93,7.8166]
[1725263470105,7.8143,127.97,127.92,29.748]
[1725263470635,24.69563329,127.96,127.92,29.748]
[1725263470925,24.69563329,127.96,127.92,21.9308]
[1725263470926,32.51063329,127.96,127.92,21.9308]
[1725263471130,24.69563329,127.94,127.89,22.2429]
[1725263471525,7.94279,127.93,127.89,15.7792]
[1725263471832,7.94279,127.93,127.86,22.5058]
[1725263471833,24.69563329,127.92,127.86,22.5058]
[1725263472327,7.8181,127.91,127.86,22.5058]
[1725263473024,32.51303329,127.92,127.87,7.8204]
[1725263473204,32.51223329,127.94,127.87,19.5499]
[1725263473406,24.69563329,127.94,127.86,22.5058]
[1725263473608,24.69563329,127.96,127.9,19.5455]
[1725263473815,7.94099,127.95,127.9,27.3639]
[1725263474503,7.8155,127.95,127.9,27.3639]
[1725263474911,24.69563329,127.96,127.91,7.8177]
[1725263475633,24.69563329,127.96,127.92,7.8173]
[1725263475929,41.82105991,127.99,127.92,7.8173]
[1725263475930,24.69563329,127.98,127.92,7.8173]
[1725263477224,24.69563329,127.98,127.93,22.5138]
[1725263478436,24.69563329,127.98,127.94,7.8155]
[1725263478639,7.8132,127.99,127.94,7.8155]
[1725263478807,32.50883329,127.99,127.94,7.8155]
[1725263479603,7.8139,127.98,127.93,30.3305]
[1725263480115,7.8139,127.98,127.94,7.816]
[1725263480322,32.50883329,127.99,127.94,7.816]
[1725263480824,7.8138,127.98,127.94,7.816]
[1725263481023,7.93929,127.98,127.94,7.816]
[1725263481205,7.93929,127.98,127.93,30.3304]
[1725263481633,7.8138,127.98,127.93,22.5138]
[1725263481962,7.8138,127.98,127.94,7.816]
[1725263482109,24.69563329,127.99,127.94,19.5396]
[1725263482313,24.69563329,128.01,127.93,22.5138]
[1725263482516,24.69563329,128.01,127.94,45.0]
[1725263483133,24.69563329,128.01,127.96,19.5365]
[1725263483632,24.69563329,128.01,127.97,7.8137]
[1725263485436,24.69563329,128.01,127.97,7.8142]
[1725263489040,66.5166932,128.01,127.95,7.8153]
[1725263489238,66.5166932,128.01,127.93,42.0551]
[1725263489239,24.69563329,127.99,127.93,42.0551]
[1725263489746,24.69563329,127.99,127.93,49.8717]
[1725263489747,7.8145,127.97,127.93,49.8717]
[1725263489957,7.8138,127.98,127.93,49.8717]
[1725263490442,7.8144,127.97,127.93,42.0551]
[1725263490651,7.8151,127.96,127.9,25.9887]
[1725263490824,7.8151,127.96,127.91,7.8178]
[1725263491031,24.69563329,127.97,127.9,50.1204]
[1725263491032,32.51123329,127.95,127.9,50.1204]
[1725263491961,24.69563329,127.95,127.9,22.7557]
[1725263492319,24.69563329,127.95,127.92,7.8169]
[1725263492532,24.69563329,127.95,127.91,27.3617]
[1725263493930,24.69563329,127.99,127.91,19.5439]
[1725263494140,66.5166932,127.99,127.92,45.0]
[1725263495058,7.8142,127.98,127.93,7.8166]
[1725263495263,7.8144,127.97,127.92,52.8173]
[1725263496158,32.51003329,127.97,127.92,7.8173]
[1725263497736,24.69563329,127.97,127.93,7.8167]
[1725263499031,7.8138,127.98,127.93,7.8167]
[1725263499553,24.69563329,127.99,127.9,22.7557]
[1725263499761,24.69563329,127.99,127.95,7.8151]
[1725263501049,64.98593007,128.03,127.97,7.8138]
[1725263501050,32.50753329,128.01,127.97,7.8138]
[1725263502150,24.69563329,128.01,127.97,7.8138]
[1725263502936,32.50763329,128.01,127.97,7.8138]
[1725263505348,24.69563329,128.03,127.98,7.8133]
[1725263505948,32.50673329,128.03,127.99,7.813]
[1725263506271,32.50673329,128.03,127.98,27.3471]
[1725263508677,24.69563329,128.03,127.99,7.8129]
[1725263508849,24.69563329,128.03,128.0,7.8122]
[1725263510053,9.87723462,128.03,128.0,7.8122]
[1725263512367,9.87723462,128.03,127.99,7.813]
[1725263515363,17.68793462,128.03,127.99,7.813]
[1725263515563,9.87723462,128.01,127.98,19.5336]
[1725263516872,9.87723462,128.01,127.98,27.3471]
[1725263517955,7.8101,128.04,127.99,7.8129]
[1725263518155,45.01375991,128.07,128.0,7.8124]
[1725263518156,9.87723462,128.03,128.0,7.8124]
[1725263519572,9.87723462,128.03,127.99,7.8129]
[1725263519893,9.87723462,128.03,128.0,7.8122]
[1725263520477,9.87723462,128.03,127.99,7.8129]
[1725263520663,9.87723462,128.01,127.99,7.8129]
[1725263521355,9.87723462,128.01,127.98,27.3471]
[1725263521995,9.87723462,128.01,127.99,7.8129]
[1725263522276,17.68803462,128.03,127.96,29.4674]
[1725263522277,17.68983462,128.0,127.96,29.4674]
[1725263522483,9.87723462,128.0,127.98,7.8135]
[1725263523282,9.87723462,128.01,127.98,7.8135]
[1725263523680,9.87723462,128.01,127.99,7.8126]
[1725263524190,9.87723462,128.03,127.99,7.8126]
[1725263524586,9.87723462,128.03,128.0,19.5308]
[1725263524768,9.87723462,128.03,128.0,27.3431]
[1725263527594,9.87723462,128.05,128.0,19.5308]
[1725263527765,9.87723462,128.05,128.0,27.3427]
[1725263528372,9.87723462,128.05,128.01,7.8118]
[1725263528582,9.87723462,128.05,128.0,19.5308]
[1725263530399,9.87723462,128.05,128.01,7.8118]
[1725263532669,9.87723462,128.03,128.0,27.3432]
[1725263532869,9.87723462,128.03,127.96,41.1898]
[1725263533070,9.87723462,128.03,127.97,45.0]
[1725263533373,9.87723462,128.03,127.99,7.8126]
[1725263535300,7.8101,128.04,128.0,7.8122]
[1725263535301,9.87723462,128.04,128.0,7.8122]
[1725263535477,7.8072,128.09,128.03,19.5258]
[1725263535680,9.4631,128.1,128.05,7.8093]
[1725263535886,9.87723462,128.08,128.05,7.8093]
[1725263536189,9.87723462,128.08,128.05,19.5227]
[1725263537269,9.87723462,128.08,128.05,27.332]
[1725263538196,9.87723462,128.08,128.06,7.8083]
[1725263538692,9.87723462,128.08,128.05,19.5227]
[1725263538876,7.8072,128.09,128.05,19.5227]
[1725263539077,9.87723462,128.06,128.05,27.3321]
[1725263541485,9.87723462,128.08,128.05,27.3321]
[1725263541808,7.8065,128.1,128.05,27.3321]
[1725263542103,9.87723462,128.09,128.06,7.8086]
[1725263543811,7.8076,128.08,128.05,19.5227]
[1725263544098,7.8076,128.08,128.04,7.8099]
[1725263544099,9.87723462,128.07,128.04,7.8099]
[1725263545680,9.87723462,128.07,128.05,7.8093]
[1725263545881,17.68423462,128.09,128.05,7.8093]
[1725263546094,9.87723462,128.09,128.06,7.8087]
[1725263546281,7.8052,128.12,128.02,60.2717]
[1725263546486,7.8052,128.12,128.03,45.12549]
[1725263546487,9.87723462,128.11,128.03,45.12549]
[1725263546793,9.87723462,128.11,128.07,7.808]
[1725263548691,41.82105991,128.08,128.02,21.2182]
[1725263548901,9.87723462,128.04,128.02,21.2182]
[1725263549299,9.87723462,128.04,128.0,27.3426]
[1725263549530,9.87723462,128.04,127.99,24.327]
[1725263549806,9.87723462,128.02,127.99,16.514]
[1725263550102,51.69829453,128.04,127.89,21.1177]
[1725263550103,41.82105991,127.99,127.89,21.1177]
[1725263550410,9.87723462,127.94,127.89,21.1177]
[1725263550713,9.87723462,127.94,127.9,7.8185]
[1725263551221,9.87723462,127.94,127.91,7.8179]
[1725263551391,17.69363462,127.94,127.89,40.6643]
[1725263551698,9.87723462,127.92,127.89,21.1177]
[1725263552012,32.55147867,127.94,127.89,21.1177]
[1725263552802,24.73477867,127.92,127.86,19.5524]
[1725263554306,24.73477867,127.92,127.87,7.8204]
[1725263554684,24.73477867,127.92,127.88,7.8198]
[1725263555382,24.73477867,127.92,127.89,7.8191]
[1725263559211,24.73477867,127.94,127.9,7.8184]
[1725263559706,24.73477867,127.92,127.88,19.5483]
[1725263560096,24.73477867,127.92,127.88,27.3678]
[1725263560398,24.73477867,127.92,127.88,19.5483]
[1725263560608,24.73477867,127.92,127.89,7.8186]
[1725263562489,49.63715991,127.95,127.89,7.8186]
[1725263562490,24.73477867,127.94,127.89,7.8186]
[1725263564706,24.73477867,127.94,127.91,7.8174]
[1725263565008,24.73477867,127.94,127.9,27.3636]
[1725263568010,24.73477867,127.92,127.88,7.8197]
[1725263568693,24.73477867,127.92,127.89,7.8191]
[1725263569196,24.73477867,127.92,127.87,19.5505]
[1725263570511,24.73477867,127.92,127.88,7.8197]
[1725263571013,24.73477867,127.92,127.85,21.2409]
[1725263571186,32.55217867,127.92,127.85,21.2409]
[1725263571393,24.73477867,127.92,127.88,7.8198]
[1725263571604,24.73477867,127.92,127.89,27.3663]
[1725263573724,32.55137867,127.94,127.89,27.3663]
[1725263573898,32.55137867,127.94,127.9,7.8185]
[1725263575608,24.73477867,127.94,127.91,7.8175]
[1725263580520,24.73477867,127.94,127.9,7.8185]
[1725263580821,32.55107867,127.94,127.9,7.8185]
[1725263581196,32.55107867,127.94,127.89,27.3662]
[1725263581397,32.55107867,127.94,127.86,39.1046]
[1725263581398,24.73477867,127.92,127.88,7.8197]
[1725263582310,32.55227867,127.92,127.88,7.8197]
[1725263582627,24.73477867,127.92,127.89,7.8191]
[1725263583131,7.8169,127.93,127.89,7.8191]
[1725263583501,7.8168,127.93,127.86,19.5518]
[1725263583697,7.8168,127.93,127.89,7.819]
[1725263583920,9.89368054,127.92,127.89,7.819]
[1725263585424,41.82105991,127.96,127.88,19.5488]
[1725263585630,9.89368054,127.94,127.88,19.5488]
[1725263585918,9.89368054,127.94,127.9,7.8185]
[1725263586503,9.89368054,127.94,127.85,31.13458054]
[1725263586504,9.89368054,127.92,127.85,40.7942]
[1725263586826,9.89368054,127.9,127.87,7.8203]
[1725263589800,9.89368054,127.9,127.88,7.8193]
[1725263590326,9.89368054,127.92,127.88,7.8193]
[1725263590500,81.39578207,127.98,127.89,19.5474]
[1725263590710,9.89368054,127.93,127.89,19.5474]
[1725263590895,9.89368054,127.93,127.9,7.8184]
[1725263591099,9.89368054,127.93,127.89,27.3664]
[1725263591330,9.89368054,127.91,127.89,27.3664]
[1725263594010,7.8157,127.95,127.9,7.8186]
[1725263594213,9.89368054,127.93,127.9,7.8186]
[1725263595710,41.82105991,127.96,127.91,7.8179]
[1725263595711,7.8149,127.96,127.91,7.8179]
[1725263595906,9.89368054,127.94,127.91,7.8179]
[1725263596310,9.89368054,127.94,127.9,24.0106]
[1725263596627,9.89368054,127.92,127.9,7.8184]
[1725263599719,7.8159,127.95,127.9,7.8184]
[1725263600038,9.89368054,127.93,127.9,7.8184]
[1725263601213,9.89368054,127.93,127.92,7.8173]
[1725263601412,9.89368054,127.95,127.91,19.544]
[1725263601719,9.89368054,127.95,127.92,7.8173]
[1725263603215,9.89368054,127.95,127.91,27.3618]
[1725263603906,9.89368054,127.93,127.91,27.3618]
[1725263606034,9.89368054,127.93,127.89,7.8191]
[1725263606210,9.89368054,127.93,127.88,19.5494]
[1725263607039,9.89368054,127.93,127.9,7.8185]
[1725263607926,9.89368054,127.93,127.87,61.2932]
[1725263608134,9.89368054,127.93,127.91,7.8176]
[1725263610633,9.89368054,127.93,127.91,7.8178]
[1725263612529,7.8151,127.96,127.91,7.8178]
[1725263612711,9.89368054,127.94,127.92,7.8173]
[1725263613737,20.95941444,127.97,127.92,19.5427]
[1725263613917,9.89368054,127.97,127.93,7.8166]
[1725263614836,9.89368054,127.95,127.92,27.36]
[1725263615019,9.89368054,127.93,127.92,19.5427]
[1725263615334,9.89368054,127.93,127.87,61.2932]
[1725263615335,9.89368054,127.93,127.9,7.8185]
[1725263616023,9.89368054,127.93,127.89,19.5472]
[1725263616024,9.89368054,127.93,127.91,7.8178]
[1725263618924,9.89368054,127.95,127.92,7.8173]
[1725263620620,7.8144,127.97,127.92,7.8173]
[1725263620824,9.89368054,127.95,127.93,7.8167]
[1725263621242,9.89368054,127.95,127.92,7.8172]
[1725263623519,9.89368054,127.93,127.91,19.5439]
[1725263623930,9.89368054,127.94,127.92,7.8173]
[1725263639565,9.89368054,127.96,127.93,7.8167]
[1725263639945,9.89368054,127.96,127.92,7.8172]
[1725263641931,9.89368054,127.94,127.88,25.12585075]
[1725263642128,9.89368054,127.9,127.88,19.5486]
[1725263642463,9.89368054,127.9,127.87,30.0136]
[1725263646670,9.89368054,127.9,127.88,7.8197]
[1725263647546,7.8162,127.94,127.89,7.8191]
[1725263647751,9.89368054,127.92,127.89,7.8191]
[1725263649637,9.89368054,127.92,127.87,41.7437]
[1725263649638,20.96185597,127.97,127.87,61.2926]
[1725263649948,7.8147,127.97,127.92,7.8173]
[1725263650261,9.89368054,127.95,127.91,19.5442]
[1725263651343,9.89368054,127.95,127.92,7.8172]
[1725263653441,9.89368054,127.93,127.88,45.0]
[1725263653753,9.89368054,127.93,127.9,7.8184]
[1725263653964,9.89368054,127.93,127.89,27.3661]
[1725263655357,9.89368054,127.93,127.9,7.8184]
[1725263658943,9.89368054,127.93,127.91,7.8178]
[1725263659238,59.10992216,127.98,127.97,7.8143]
[1725263659239,21.50869411,127.98,127.97,7.8143]
[1725263659448,9.89368054,128.0,127.95,19.5377]
[1725263659667,9.89368054,128.0,127.97,7.8143]
[1725263659971,9.89368054,128.0,127.95,27.3532]
[1725263659972,9.89368054,127.98,127.95,27.3532]
[1725263661363,9.89368054,127.98,127.96,7.8146]
[1725263661861,9.89368054,127.98,127.95,27.3531]
[1725263662373,9.89368054,127.96,127.92,42.25]
[1725263662870,9.89368054,127.96,127.93,7.8161]
[1725263664456,9.89368054,127.96,127.92,43.7098]
[1725263671472,9.89368054,127.96,127.93,7.8163]
[1725263671645,9.89368054,127.98,127.92,35.8925]
[1725263672368,9.89368054,127.98,127.95,7.8153]
[1725263673775,17.70748054,127.98,127.94,19.5397]
[1725263674070,9.89368054,127.98,127.95,7.8153]
[1725263674486,20.95775839,128.01,127.93,6.2271]
[1725263674773,9.89368054,128.02,127.99,27.3455]
[1725263675073,9.89368054,128.02,127.93,16.12078054]
[1725263675074,9.89368054,128.0,127.96,7.8144]
[1725263675281,9.89368054,127.98,127.96,7.8144]
[1725263675780,9.89368054,127.98,127.95,27.3527]
[1725263676070,9.89368054,127.98,127.95,19.5374]
[1725263676273,9.89368054,128.0,127.96,7.8143]
[1725263676775,9.89368054,128.0,127.97,7.8141]
[1725263677577,9.89368054,128.0,127.98,7.8137]
[1725263678866,9.89368054,128.0,127.97,7.8142]
[1725263679868,19.78736108,127.98,127.92,35.8919]
[1725263680084,19.78736108,127.98,127.88,15.7861]
[1725263680085,9.89368054,127.93,127.88,15.7861]
[1725263680247,9.89368054,127.93,127.89,7.8192]
[1725263681651,9.89368054,127.95,127.9,19.5454]
[1725263682083,9.89368054,127.95,127.93,7.8163]
[1725263683277,30.0,127.94,127.93,7.8163]
[1725263684257,30.0,127.94,127.92,19.5425]
[1725263687675,30.0,127.94,127.93,7.8167]
[1725263688194,24.72103623,127.97,127.93,7.8167]
[1725263689261,24.72103623,127.97,127.94,7.8161]
[1725263689984,52.53423623,127.99,127.94,7.8161]
[1725263690459,41.82105991,128.04,127.95,61.2987]
[1725263690663,24.72103623,128.02,127.98,7.8136]
[1725263692597,24.72103623,128.02,127.95,16.2987]
[1725263692886,32.53233623,128.02,127.97,7.8138]
[1725263693394,24.72103623,128.02,127.97,7.8138]
[1725263693680,24.72103623,128.02,127.99,7.813]
[1725263693867,24.72103623,128.02,127.98,7.8135]
[1725263694757,24.72103623,128.02,127.99,7.813]
[1725263696708,24.72103623,128.03,127.99,7.813]
[1725263697790,32.53173623,128.03,127.99,7.813]
[1725263698365,32.53173623,128.03,127.98,7.8135]
[1725263699367,24.72103623,128.01,127.98,7.8135]
[1725263700892,53.92593293,128.03,127.98,7.8135]
[1725263701477,32.53183623,128.03,127.98,7.8135]
[1725263702187,32.53183623,128.03,127.99,7.8131]
[1725263703794,32.53183623,128.03,127.98,7.8135]